bitfinex/quotes_ETHUSD_20251008
["timestamp","ask_amount","ask_price","bid_price","bid_amount"]
[1759926778495,4.152392,4479.5,4479.4,2.523]
[1759926780086,2.23244184,4479.4,4479.3,0.001]
[1759926780288,2.23244184,4479.4,4479.3,2.524]
[1759926780688,2.23244184,4479.4,4479.3,0.001]
[1759926780889,2.66184184,4479.4,4479.3,2.524]
[1759926781090,2.23244184,4479.4,4479.3,2.524]
[1759926781291,2.23244184,4479.4,4479.3,0.001]
[1759926781589,2.23164184,4479.4,4479.3,2.524]
[1759926782015,1.92,4479.5,4479.3,2.524]
[1759926782324,1.92,4479.8,4479.4,0.4478]
[1759926782621,2.2323805,4479.6,4479.4,0.47012441]
[1759926782830,2.232392,4479.5,4479.4,0.4478]
[1759926783390,2.23229492,4479.7,4479.3,2.524]
[1759926783595,3.11416096,4479.9,4479.3,2.524]
[1759926783821,1.92,4479.8,4479.3,2.524]
[1759926784024,2.23240844,4479.5,4479.3,2.524]
[1759926784217,4.15224251,4479.8,4479.6,0.1112]
[1759926784412,4.15229234,4479.7,4479.6,0.1112]
[1759926784730,4.15229234,4479.7,4479.6,2.6342]
[1759926786124,4.15229234,4479.7,4479.6,0.1112]
[1759926786295,4.15229234,4479.7,4479.6,2.6342]
[1759926787192,4.15229234,4479.7,4479.3,0.001]
[1759926787193,2.23244184,4479.4,4479.3,0.001]
[1759926787401,2.23244184,4479.4,4479.3,2.524]
[1759926787402,7.2666028,4479.4,4479.3,2.524]
[1759926789429,7.2666028,4479.4,4479.3,0.001]
[1759926789609,7.2666028,4479.4,4479.3,2.524]
[1759926790925,1.92,4479.4,4479.3,2.524]
[1759926791234,1.92,4479.4,4479.3,2.9718]
[1759926791793,2.23227847,4479.8,4479.3,3.2811]
[1759926792023,1.92,4479.9,4479.4,0.47012441]
[1759926792024,2.23229568,4479.7,4479.4,0.47012441]
[1759926792223,2.23229568,4479.7,4479.6,0.1112]
[1759926792622,2.23219941,4479.9,4479.6,0.559]
[1759926792826,2.23219941,4479.9,4479.7,2.9708]
[1759926793035,0.002,4480.1,4479.7,2.9708]
[1759926793253,4.15214285,4480.0,4479.8,0.1112]
[1759926793531,4.15219268,4479.9,4479.8,0.1112]
[1759926793728,2.23217697,4480.0,4479.8,0.559]
[1759926794143,1.922,4480.1,4479.8,0.559]
[1759926794436,0.002,4480.1,4479.8,0.1112]
[1759926794620,1.922,4480.1,4479.8,0.1112]
[1759926794950,2.23219268,4479.9,4479.8,0.559]
[1759926795252,2.23410252,4480.1,4479.8,0.559]
[1759926795747,2.23214596,4480.0,4479.8,0.559]
[1759926795953,1.922,4480.1,4479.8,0.1112]
[1759926796149,0.002,4480.1,4479.8,0.1112]
[1759926796311,1.92,4480.0,4479.8,0.1112]
[1759926796632,4.15219268,4479.9,4479.8,0.1112]
[1759926796836,2.23219268,4479.9,4479.8,0.1112]
[1759926797140,4.15214572,4480.0,4479.8,0.1112]
[1759926797514,1.92,4480.0,4479.8,0.1112]
[1759926797718,0.002,4480.1,4479.9,0.4478]
[1759926797918,0.002,4480.1,4479.8,0.13352242]
[1759926798119,0.002,4480.0,4479.8,0.13352242]
[1759926798346,0.002,4480.0,4479.9,0.4478]
[1759926798765,0.002,4480.0,4479.9,3.62402492]
[1759926798912,0.002,4480.0,4479.9,3.87522492]
[1759926799116,0.002,4480.0,4479.9,3.89754684]
[1759926799610,0.002,4480.0,4479.9,3.87522492]
[1759926800013,0.002,4480.0,4479.9,3.89754684]
[1759926800446,0.002,4480.0,4479.9,18.37522492]
[1759926801020,0.002,4480.0,4479.9,20.89822492]
[1759926801355,0.002,4480.0,4479.9,20.75822492]
[1759926802160,0.002,4480.0,4479.9,20.01342492]
[1759926802461,0.002,4480.0,4479.9,20.64702492]
[1759926803166,0.002,4480.0,4479.9,14.81043224]
[1759926803471,0.002,4480.0,4479.9,2.522]
[1759926803757,0.002,4480.0,4479.9,2.9698]
[1759926803959,0.002,4480.0,4479.3,14.52332491]
[1759926803960,0.002,4480.0,4479.5,0.02232392]
[1759926804163,0.002,4480.0,4479.9,0.14]
[1759926804368,5.34830381,4480.0,4479.9,0.14]
[1759926804531,5.79390381,4480.0,4479.9,0.732]
[1759926804856,0.0012,4480.0,4479.9,0.732]
[1759926805853,0.0012,4480.0,4479.9,1.1798]
[1759926806954,0.0012,4480.0,4479.9,0.732]
[1759926807155,0.0012,4480.0,4479.9,0.592]
[1759926807760,0.0012,4480.0,4479.8,0.6336]
[1759926808263,0.0012,4480.0,4479.9,0.14]
[1759926808760,0.0012,4480.0,4479.9,2.662]
[1759926808975,0.0012,4480.0,4479.9,2.522]
[1759926810251,2.23334285,4480.0,4479.9,2.522]
[1759926811473,0.0012,4480.0,4479.9,2.522]
[1759926812282,0.0012,4480.0,4479.9,2.6332]
[1759926813378,0.0012,4480.0,4479.9,3.081]
[1759926814393,0.0012,4480.0,4479.9,2.6332]
[1759926814894,2.23334285,4480.0,4479.9,2.6332]
[1759926815111,0.0012,4480.0,4479.9,2.6332]
[1759926815988,2.23334285,4480.0,4479.9,2.6332]
[1759926816195,0.0012,4480.0,4479.9,2.6332]
[1759926817051,0.0012,4480.0,4479.9,3.081]
[1759926817252,0.0012,4480.0,4479.9,6.64044312]
[1759926817477,0.0012,4480.0,4479.9,6.6181212]
[1759926820882,0.0012,4480.0,4479.9,21.1181212]
[1759926821658,0.0004,4480.2,4479.9,21.1181212]
[1759926821659,1e-08,4480.2,4479.9,21.0069212]
[1759926821900,1e-08,4480.2,4480.1,2.97379303]
[1759926822099,1e-08,4480.2,4480.1,6.39245161]
[1759926822278,1e-08,4480.2,4480.1,6.82625161]
[1759926823984,1e-08,4480.7,4480.6,2.86544394]
[1759926824188,1e-08,4481.1,4481.0,2.86524472]
[1759926824376,1e-08,4481.1,4481.0,5.80728563]
[1759926824574,1e-08,4481.1,4481.0,6.21876919]
[1759926825476,1e-08,4481.1,4481.0,6.35876919]
[1759926827495,1e-08,4481.1,4481.0,6.80933738]
[1759926827794,0.00040001,4481.2,4481.1,2.86519492]
[1759926827991,0.00040001,4481.2,4481.1,4.35202459]
[1759926829594,0.00040001,4481.2,4481.1,6.87302459]
[1759926833162,0.00040001,4481.2,4481.1,4.35202459]
[1759926833405,0.00040001,4481.2,4481.1,6.87302459]
[1759926835386,0.00040001,4481.2,4481.1,18.23302459]
[1759926836224,0.00040001,4481.2,4481.1,15.71202459]
[1759926836520,0.00040001,4481.2,4481.1,18.23302459]
[1759926836818,0.00040001,4481.2,4481.1,6.87302459]
[1759926837118,1e-08,4481.9,4481.5,0.6336]
[1759926837319,1e-08,4481.9,4481.8,2.86484637]
[1759926837522,1e-08,4481.9,4481.8,5.49704637]
[1759926837826,1e-08,4481.9,4481.8,5.93084637]
[1759926838803,1e-08,4481.9,4481.8,0.1112]
[1759926839020,1e-08,4481.9,4481.8,2.521]
[1759926839489,1e-08,4481.9,4481.8,3.1546]
[1759926839794,1e-08,4481.9,4481.8,2.521]
[1759926840199,1e-08,4481.9,4481.8,3.1546]
[1759926840407,1e-08,4481.9,4481.8,2.521]
[1759926840609,1e-08,4481.9,4481.8,2.9548]
[1759926841007,1e-08,4481.9,4481.8,3.5884]
[1759926842024,1e-08,4481.9,4481.8,6.42392786]
[1759926842223,1e-08,4481.9,4481.8,6.4016154]
[1759926843938,1e-08,4481.9,4481.8,2.522]
[1759926844102,1e-08,4481.9,4481.8,2.9698]
[1759926844510,1e-08,4481.9,4481.8,2.522]
[1759926847623,1e-08,4481.9,4481.8,4.75324637]
[1759926847827,1e-08,4481.9,4481.8,3.6034]
[1759926848847,1e-08,4481.9,4481.8,0.7448]
[1759926849059,1e-08,4481.9,4481.8,0.1112]
[1759926849225,1e-08,4481.9,4481.8,2.6332]
[1759926850821,0.09058778,4482.0,4481.8,2.6332]
[1759926851461,2.32175876,4482.0,4481.9,2.522]
[1759926852060,0.09058778,4482.0,4481.9,2.522]
[1759926852260,2.23154512,4481.2,4480.3,0.1112]
[1759926852559,2.23154512,4481.2,4481.1,0.011]
[1759926852560,4.59784706,4481.2,4481.1,0.011]
[1759926852740,4.70904706,4481.2,4481.1,0.011]
[1759926852944,5.65992602,4481.2,4481.1,0.001]
[1759926853465,5.18224706,4481.2,4481.1,0.001]
[1759926854023,5.65943809,4481.2,4481.1,0.001]
[1759926854962,14.99024859,4481.2,4481.1,0.001]
[1759926855456,14.51305756,4481.2,4481.1,0.001]
[1759926856136,5.18224706,4481.2,4481.1,0.001]
[1759926856938,5.18224706,4481.2,4481.1,0.001]
[1759926857762,5.2716664,4481.2,4481.1,0.001]
[1759926860278,4.35216446,4481.2,4481.1,0.001]
[1759926860437,4.24096446,4481.2,4481.1,0.001]
[1759926861163,2.00941934,4481.2,4481.1,0.001]
[1759926861335,4.24096446,4481.2,4481.1,0.001]
[1759926862367,2.00941934,4481.2,4481.1,0.001]
[1759926863133,1.92,4481.2,4481.1,0.001]
[1759926863337,4.15154512,4481.2,4481.1,0.001]
[1759926864946,1.92,4481.2,4481.1,0.001]
[1759926865148,4.15154512,4481.2,4481.1,0.001]
[1759926865582,1.92,4481.2,4481.1,0.001]
[1759926867952,4.15154512,4481.2,4481.1,2.524]
[1759926868159,4.15154512,4481.2,4481.1,2.523]
[1759926868351,1.92,4481.2,4481.1,2.523]
[1759926869171,4.15154512,4481.2,4481.1,2.523]
[1759926869559,1.92,4481.2,4481.1,2.523]
[1759926870659,0.002,4481.9,4481.2,0.6336]
[1759926870891,2.23323422,4481.9,4481.6,0.1112]
[1759926871082,2.23323422,4481.9,4481.7,2.522]
[1759926871290,0.002,4481.9,4481.7,2.522]
[1759926871660,2.23320706,4481.9,4481.7,2.522]
[1759926872573,0.002,4481.9,4481.7,2.522]
[1759926872780,2.23320323,4481.9,4481.7,2.522]
[1759926873469,0.002,4481.9,4481.7,2.522]
[1759926873897,0.0012,4481.9,4481.7,2.522]
[1759926874065,2.23241004,4481.9,4481.7,2.522]
[1759926874588,2.23124637,4481.8,4481.7,2.522]
[1759926874798,2.23124637,4481.8,4481.6,0.1112]
[1759926874799,2.23129615,4481.7,4481.6,0.1112]
[1759926875005,2.23154512,4481.2,4481.1,0.001]
[1759926875158,2.23154512,4481.2,4481.1,2.6342]
[1759926875497,2.23150329,4481.3,4481.1,2.6342]
[1759926875894,2.23145387,4481.4,4481.1,0.1122]
[1759926876059,2.23145387,4481.4,4481.2,2.522]
[1759926876684,2.0312,4481.8,4481.2,2.522]
[1759926877001,1.9212,4481.9,4481.3,0.13351495]
[1759926877162,0.0012,4481.9,4481.3,0.13351495]
[1759926877364,2.23124637,4481.8,4481.3,0.13351495]
[1759926878068,2.23124637,4481.8,4481.4,0.434]
[1759926878368,0.0012,4481.9,4481.7,0.1112]
[1759926878570,0.0012,4481.9,4481.8,2.522]
[1759926879166,2.23239659,4481.9,4481.8,2.522]
[1759926880077,0.0012,4481.9,4481.8,2.522]
[1759926880283,2.23239659,4481.9,4481.8,2.522]
[1759926880798,0.0012,4481.9,4481.8,2.522]
[1759926882495,0.0012,4481.9,4481.8,2.9698]
[1759926883507,0.0012,4481.9,4481.8,2.522]
[1759926884766,0.0012,4481.9,4481.8,2.9698]
[1759926885501,0.0012,4481.9,4481.8,2.522]
[1759926886571,0.0012,4481.9,4481.8,5.85695883]
[1759926886902,0.0012,4481.9,4481.8,5.83464637]
[1759926888605,0.0012,4481.9,4481.8,20.33464637]
[1759926888989,0.0012,4481.9,4481.8,17.81264637]
[1759926889515,0.0012,4481.9,4481.8,20.33464637]
[1759926889816,0.0012,4481.9,4481.8,22.37923101]
[1759926891327,0.0012,4481.9,4481.8,19.85723101]
[1759926891535,0.0012,4481.9,4481.8,14.5]
[1759926891690,0.0012,4481.9,4481.8,17.022]
[1759926891891,0.0012,4481.9,4481.8,17.6556]
[1759926892490,0.0012,4481.9,4481.8,3.1556]
[1759926895409,0.0012,4481.9,4481.8,3.17791246]
[1759926895637,0.0012,4481.9,4481.8,6.18587008]
[1759926895933,0.0012,4481.9,4481.8,6.16355762]
[1759926896912,0.0004,4481.9,4481.8,6.16355762]
[1759926899115,0.0004,4481.9,4481.8,20.66355762]
[1759926903277,0.002,4482.1,4482.0,7.1643468]
[1759926903422,1e-08,4482.2,4482.1,2.86469703]
[1759926903621,1e-08,4482.2,4482.1,5.469408]
[1759926903850,1e-08,4482.2,4482.1,19.94709703]
[1759926904751,1e-08,4482.2,4482.1,31.30669703]
[1759926905068,1e-08,4482.2,4482.1,33.55846748]
[1759926906638,1e-08,4482.7,4482.1,31.32737045]
[1759926906836,1e-08,4482.7,4482.3,0.6336]
[1759926907171,0.002,4484.1,4482.7,2.5536]
[1759926907474,0.002,4484.1,4483.0,4.89544911]
[1759926907655,0.002,4484.1,4483.0,8.40956946]
[1759926908157,0.002,4484.1,4483.0,20.82576946]
[1759926908357,0.002,4484.1,4483.0,21.42676946]
[1759926910555,0.002,4484.1,4483.0,32.78636946]
[1759926910972,0.002,4484.1,4483.0,30.26536946]
[1759926911177,0.002,4484.1,4483.0,32.78636946]
[1759926912165,0.002,4484.1,4483.0,25.72636946]
[1759926912369,0.002,4484.1,4483.0,32.78636946]
[1759926913462,0.002,4484.1,4483.0,23.20536946]
[1759926913656,0.002,4484.1,4483.0,25.72536946]
[1759926913852,0.002,4484.1,4483.0,23.20536946]
[1759926914177,2.23016389,4484.0,4483.0,18.46856946]
[1759926914359,2.23016389,4484.0,4483.0,21.42576946]
[1759926914553,2.23211705,4484.1,4483.0,21.42576946]
[1759926916176,2.2301619,4484.0,4483.0,21.42576946]
[1759926916354,0.002,4484.1,4483.0,21.42576946]
[1759926917246,0.002,4484.1,4483.0,18.90576946]
[1759926917444,0.002,4484.1,4483.0,21.42576946]
[1759926919377,0.002,4484.1,4483.0,18.90576946]
[1759926919584,0.002,4484.1,4483.0,21.42576946]
[1759926919954,0.0012,4483.1,4483.0,21.42576946]
[1759926924969,0.0012,4483.1,4483.0,21.42676946]
[1759926928265,0.0012,4483.1,4483.0,18.90676946]
[1759926928452,0.0012,4483.1,4483.0,21.42676946]
[1759926929258,0.0012,4483.1,4483.0,25.72636946]
[1759926931075,0.0012,4483.1,4483.0,18.46956946]
[1759926931382,0.0012,4483.1,4483.0,21.42676946]
[1759926935182,0.0012,4483.1,4483.0,21.56676946]
[1759926936294,0.0012,4483.1,4483.0,18.90676946]
[1759926936502,0.0012,4483.1,4483.0,21.42676946]
[1759926936818,0.0012,4483.1,4483.0,19.19612035]
[1759926937100,0.0012,4483.1,4483.0,0.1122]
[1759926937301,0.0012,4483.1,4483.0,2.6322]
[1759926937488,2.23179936,4483.1,4483.0,2.6322]
[1759926939289,2.69089936,4483.1,4483.0,2.6322]
[1759926939619,8.29802141,4483.1,4483.0,0.1122]
[1759926939823,5.19071949,4483.1,4483.0,0.001]
[1759926939982,5.86103191,4483.1,4483.0,0.001]
[1759926940187,8.96833383,4483.1,4483.0,0.001]
[1759926940506,2.2307984,4482.7,4482.5,0.001]
[1759926940817,8.35768368,4482.6,4482.5,0.001]
[1759926940986,8.81678368,4482.6,4482.5,0.001]
[1759926941169,11.04763184,4482.6,4482.5,0.001]
[1759926941370,2.23104725,4482.2,4482.1,0.001]
[1759926941571,7.25834917,4482.2,4482.1,0.001]
[1759926941775,2.23119659,4481.9,4481.8,0.001]
[1759926941972,7.47489851,4481.9,4481.8,0.001]
[1759926942176,7.94089851,4481.9,4481.8,0.001]
[1759926942484,8.61140269,4481.9,4481.8,0.001]
[1759926943009,8.61060269,4481.9,4481.8,0.001]
[1759926943207,9.58047806,4481.9,4481.8,0.001]
[1759926943507,0.94893466,4482.2,4481.8,3.2658]
[1759926943508,3.10730192,4482.2,4481.8,3.2658]
[1759926943695,1.92,4482.2,4481.9,1.10101196]
[1759926943872,0.67036933,4482.6,4482.1,0.2252]
[1759926944078,2.23096725,4482.4,4482.2,2.521]
[1759926944310,1.92,4482.3,4482.2,2.521]
[1759926944477,3.87436875,4482.8,4482.2,2.521]
[1759926944676,0.67033788,4482.7,4482.5,0.1112]
[1759926944879,8.02521691,4482.6,4482.5,0.1112]
[1759926945110,6.10521691,4482.6,4482.5,0.1112]
[1759926945311,8.49121691,4482.6,4482.5,0.1112]
[1759926945685,5.79436875,4482.6,4482.5,0.1112]
[1759926945889,1.92,4482.6,4482.5,0.1112]
[1759926947107,4.15084816,4482.6,4482.5,0.1112]
[1759926947808,1.92,4482.6,4482.5,0.1112]
[1759926948212,4.15084816,4482.6,4482.5,0.1112]
[1759926948413,1.92,4482.6,4482.5,0.1112]
[1759926949112,4.15084816,4482.6,4482.5,0.1112]
[1759926949617,4.61684816,4482.6,4482.5,0.1112]
[1759926950812,5.36864441,4482.6,4482.5,0.1112]
[1759926951694,3.13779625,4482.6,4482.5,0.1112]
[1759926951899,4.15084816,4482.6,4482.5,0.1112]
[1759926952311,4.61684816,4482.6,4482.5,0.1112]
[1759926955829,2.23119659,4481.9,4481.8,0.001]
[1759926955996,2.23119659,4481.9,4481.8,2.525]
[1759926956196,2.23119659,4481.9,4481.8,2.6362]
[1759926956400,12.68096061,4481.9,4481.8,0.1122]
[1759926956712,12.68096061,4481.9,4481.8,0.001]
[1759926956713,13.3514588,4481.9,4481.8,0.001]
[1759926960332,12.2228285,4481.9,4481.8,0.001]
[1759926960633,12.4470285,4481.9,4481.8,0.001]
[1759926960805,12.9130285,4481.9,4481.8,0.001]
[1759926965107,14.8330285,4481.9,4481.8,0.001]
[1759926965910,1.9192,4481.8,4480.9,0.001]
[1759926966119,1.9192,4481.8,4480.6,0.001]
[1759926966120,2.23174433,4480.8,4480.6,0.001]
[1759926966338,6.1106443,4480.8,4480.6,0.001]
[1759926966504,3.87889997,4480.8,4480.6,0.001]
[1759926966704,6.20006524,4480.8,4480.6,0.001]
[1759926967729,6.63576524,4480.8,4480.6,0.001]
[1759926967929,9.44250663,4480.8,4480.6,0.001]
[1759926973928,9.44262483,4480.8,4480.6,0.001]
[1759926979443,9.44262483,4480.8,4480.3,0.001]
[1759926979639,8.03096174,4480.4,4480.3,0.001]
[1759926980060,8.55609207,4480.4,4480.3,0.001]
[1759926980244,9.17199671,4480.4,4480.3,0.001]
[1759926981041,2.00943033,4480.4,4480.3,0.001]
[1759926982141,5.79901817,4480.5,4480.4,0.6336]
[1759926982341,5.79901817,4480.5,4480.4,0.76711943]
[1759926982546,5.79901817,4480.5,4480.4,0.7448]
[1759926984646,1.92,4480.7,4480.4,1.1926]
[1759926984834,1.92,4480.7,4480.5,0.47011893]
[1759926985037,1.92,4480.7,4480.5,2.70199401]
[1759926985261,1.92,4480.7,4480.6,0.4478]
[1759926985467,1.92,4480.7,4480.5,0.02231893]
[1759926985880,1.92,4480.7,4480.5,0.47011893]
[1759926986486,1.92,4480.7,4480.6,2.524]
[1759926986684,0.002,4480.9,4480.6,2.524]
[1759926986885,0.002,4480.9,4480.7,0.13351794]
[1759926987255,0.002,4480.9,4480.8,0.4478]
[1759926987452,0.002,4480.9,4480.8,1.0814]
[1759926988767,0.002,4480.9,4480.8,1.10371744]
[1759926988963,0.0012,4480.9,4480.8,0.65591744]
[1759926989490,0.0012,4480.9,4480.8,0.6336]
[1759926989958,0.0012,4480.9,4480.8,3.1576]
[1759926990881,0.0012,4480.9,4480.8,3.62771744]
[1759926991287,0.0012,4480.9,4480.8,3.17891744]
[1759926991858,0.0012,4480.9,4480.8,3.1566]
[1759926992059,0.0012,4480.9,4480.8,3.17891744]
[1759926992488,0.0012,4480.9,4480.8,3.1566]
[1759926992676,0.0012,4480.9,4480.8,3.17891744]
[1759926993295,0.0012,4480.9,4480.8,3.1566]
[1759926994199,0.0012,4480.9,4480.8,0.6336]
[1759926994200,2.23289452,4480.9,4480.8,0.6336]
[1759926994369,2.23174433,4480.8,4480.7,0.1112]
[1759926994565,4.15179413,4480.7,4480.6,4.2996]
[1759926994776,8.0308123,4480.7,4480.6,6.8226]
[1759926995096,4.15179413,4480.7,4480.6,6.8226]
[1759926995811,1.9212,4480.9,4480.6,6.8226]
[1759926995975,0.0012,4480.9,4480.6,2.6342]
[1759926996179,2.23290297,4480.9,4480.6,2.6342]
[1759926996581,0.0012,4480.9,4480.6,2.6342]
[1759926996915,0.0012,4480.9,4480.7,1.075]
[1759926997084,0.0012,4480.9,4480.8,0.7448]
[1759926997280,0.0012,4480.9,4480.8,1.1862]
[1759926997599,0.0012,4480.9,4480.8,15.6862]
[1759926997981,0.0012,4480.9,4480.8,1.1862]
[1759926998181,0.0012,4480.9,4480.8,1.20851744]
[1759926998716,0.0012,4480.9,4480.8,15.26711744]
[1759926999007,0.0012,4480.9,4480.8,17.7678]
[1759927002202,0.0012,4480.9,4480.8,3.2678]
[1759927005199,0.0012,4480.9,4480.8,5.52186177]
[1759927005406,0.0012,4480.9,4480.8,8.19911478]
[1759927005843,0.0012,4480.9,4480.8,5.94734433]
[1759927006137,0.0012,4480.9,4480.8,20.44734433]
[1759927008123,0.0012,4480.9,4480.8,17.92434433]
[1759927008455,0.0012,4480.9,4480.8,20.44634433]
[1759927009839,0.0012,4480.9,4480.8,20.58634433]
[1759927010041,0.0012,4480.9,4480.8,22.83811478]
[1759927012151,0.0004,4480.9,4480.8,22.83811478]
[1759927015043,0.0004,4480.9,4480.8,26.99771478]
[1759927016068,0.0004,4480.9,4480.8,27.13771478]
[1759927016576,0.0004,4480.9,4480.8,24.61571478]
[1759927016869,0.0004,4480.9,4480.8,27.13771478]
[1759927017070,0.0004,4480.9,4480.8,24.61571478]
[1759927017271,0.0004,4480.9,4480.8,27.13771478]
[1759927017760,0.0007935,4481.4,4481.3,2.86509532]
[1759927018074,0.0007935,4481.4,4481.3,3.51476114]
[1759927018272,0.0007935,4481.4,4481.3,6.59576114]
[1759927021649,0.0007935,4481.4,4481.3,21.09576114]
[1759927021850,0.0007935,4481.4,4481.3,6.59576114]
[1759927023083,0.0007935,4481.4,4481.3,3.91646582]
[1759927023394,0.0007935,4481.4,4481.3,0.7448]
[1759927023572,0.0007935,4481.4,4481.3,5.49829532]
[1759927023949,0.0007935,4481.4,4481.3,10.24569532]
[1759927024497,0.0007935,4481.4,4481.3,4.2996]
[1759927024498,3.11075767,4481.4,4481.3,4.2996]
[1759927024648,2.23223903,4481.4,4481.3,4.2996]
[1759927024850,0.0007935,4481.4,4481.3,5.63125532]
[1759927025049,0.002,4481.8,4481.3,5.63125532]
[1759927025050,0.002,4481.8,4481.7,2.86489615]
[1759927025363,0.002,4481.8,4481.7,5.40920911]
[1759927025563,0.002,4481.8,4481.7,5.83389615]
[1759927026389,0.002,4481.8,4481.7,5.84389615]
[1759927026587,0.002,4481.8,4481.7,6.65142236]
[1759927028298,0.002,4481.8,4481.7,4.12942236]
[1759927028502,0.002,4481.8,4481.7,6.65042236]
[1759927028790,0.002,4481.8,4481.7,4.12942236]
[1759927029098,0.002,4481.8,4481.7,3.49582236]
[1759927029258,0.002,4481.8,4481.7,6.65142236]
[1759927029462,0.002,4481.8,4481.7,5.84389615]
[1759927031676,0.002,4481.8,4481.7,10.14349615]
[1759927033770,0.002,4481.8,4481.7,10.13349615]
[1759927035800,0.0012,4481.8,4481.7,11.49230236]
[1759927037077,0.0012,4481.8,4481.7,7.19270236]
[1759927037474,0.0012,4481.8,4481.7,6.07509615]
[1759927038515,0.0012,4481.8,4481.7,3.55309615]
[1759927038718,0.0012,4481.8,4481.7,6.07409615]
[1759927039397,0.0012,4481.8,4481.7,2.7622]
[1759927039601,0.0012,4481.8,4481.7,0.2412]
[1759927039602,3.11116417,4481.8,4481.7,0.2412]
[1759927039777,3.42248059,4481.8,4481.7,2.6322]
[1759927040104,3.85238059,4481.8,4481.7,2.6322]
[1759927040406,3.42248059,4481.8,4481.7,2.6322]
[1759927040606,6.08362696,4481.8,4481.7,0.1112]
[1759927040809,6.08362696,4481.8,4481.7,2.521]
[1759927041195,2.23143746,4481.5,4481.0,0.1112]
[1759927041400,3.10996417,4481.4,4481.1,2.521]
[1759927042417,3.22116417,4481.7,4481.1,2.521]
[1759927042619,1.92,4481.6,4481.1,2.521]
[1759927042785,1.92,4481.6,4481.1,2.54331594]
[1759927043318,1.92,4481.6,4481.4,0.1112]
[1759927043479,1.92,4481.6,4481.5,2.521]
[1759927043480,2.45444806,4481.6,4481.5,2.521]
[1759927043675,4.685794,4481.6,4481.5,2.521]
[1759927044414,5.115694,4481.6,4481.5,2.521]
[1759927046122,5.99431223,4481.6,4480.8,0.001]
[1759927046305,2.23164472,4481.0,4480.9,2.6322]
[1759927046609,4.15169452,4480.9,4480.8,0.001]
[1759927047018,4.69124281,4480.9,4480.8,0.001]
[1759927047386,4.58159452,4480.9,4480.8,0.001]
[1759927048711,0.1112,4481.1,4480.8,2.524]
[1759927048882,3.10996417,4481.0,4480.8,2.524]
[1759927049087,1.92,4480.9,4480.8,0.001]
[1759927049309,4.15169452,4480.9,4480.8,2.525]
[1759927049499,4.58159452,4480.9,4480.8,2.525]
[1759927049688,1.92,4480.9,4480.8,2.525]
[1759927049889,2.23163558,4481.1,4480.8,2.525]
[1759927050095,0.1112,4481.5,4480.8,2.525]
[1759927050297,4.15169452,4480.9,4480.8,0.001]
[1759927050811,2.66159452,4480.9,4480.8,0.001]
[1759927052511,2.23169452,4480.9,4480.8,0.001]
[1759927052684,2.66559452,4480.9,4480.8,0.001]
[1759927054107,4.58559452,4480.9,4480.8,0.001]
[1759927054312,6.47814096,4480.9,4480.8,0.001]
[1759927055126,9.00314096,4480.9,4480.8,0.001]
[1759927057200,9.09257569,4480.9,4480.8,0.001]
[1759927058013,9.09177569,4480.9,4480.8,0.001]
[1759927061947,6.56677569,4480.9,4480.8,0.001]
[1759927062166,16.78247441,4480.9,4480.8,0.001]
[1759927066047,16.53161276,4480.9,4480.8,0.001]
[1759927066248,17.00744356,4480.9,4480.8,0.001]
[1759927066448,14.48244356,4480.9,4480.8,0.001]
[1759927066748,17.00744363,4480.9,4480.8,0.001]
[1759927066951,18.93135046,4480.9,4480.8,0.001]
[1759927067528,19.13798811,4480.9,4480.8,0.001]
[1759927069656,16.61298811,4480.9,4480.8,0.001]
[1759927069856,13.6848346,4480.9,4480.8,0.001]
[1759927070257,14.27962319,4480.9,4480.8,0.001]
[1759927070628,11.75462319,4480.9,4480.8,0.001]
[1759927070828,14.27962319,4480.9,4480.8,0.001]
[1759927071260,14.27862319,4480.9,4480.8,0.001]
[1759927071769,11.75462319,4480.9,4480.8,0.001]
[1759927071964,9.8046046,4480.9,4480.8,0.001]
[1759927072129,13.6838346,4480.9,4480.8,0.001]
[1759927072329,11.1598346,4480.9,4480.8,0.001]
[1759927072571,7.31592777,4480.9,4480.8,0.001]
[1759927072732,7.01985539,4480.9,4480.8,0.001]
[1759927073160,8.93985539,4480.9,4480.8,0.001]
[1759927075257,9.14733612,4480.9,4480.8,0.001]
[1759927075959,8.93985539,4480.9,4480.8,0.001]
[1759927076330,9.14741002,4480.9,4480.8,0.001]
[1759927076956,8.93985539,4480.9,4480.8,0.001]
[1759927077267,9.14741817,4480.9,4480.8,0.001]
[1759927077558,8.93985539,4480.9,4480.8,0.001]
[1759927078856,9.14745994,4480.9,4480.8,0.001]
[1759927079032,8.93985539,4480.9,4480.8,0.001]
[1759927079233,9.14751342,4480.9,4480.8,0.001]
[1759927080567,9.14951342,4480.9,4480.8,0.001]
[1759927080875,5.27028342,4480.9,4480.8,0.001]
[1759927081163,9.14871342,4480.9,4480.8,0.001]
[1759927081358,2.6054889,4480.9,4480.8,0.001]
[1759927081562,2.39783087,4480.9,4480.8,0.001]
[1759927081968,2.39783087,4480.9,4480.8,1.0832]
[1759927081969,0.47783087,4480.9,4480.8,1.0832]
[1759927082133,0.002,4480.9,4480.8,3.31494433]
[1759927082335,0.002,4480.9,4480.8,4.0054701]
[1759927082863,0.002,4480.9,4480.8,18.5054701]
[1759927083069,0.002,4480.9,4480.8,18.62315266]
[1759927089140,0.002,4480.9,4480.8,29.98275266]
[1759927090776,0.002,4480.9,4480.8,32.50675266]
[1759927091350,0.002,4480.9,4480.8,25.44675266]
[1759927091966,0.002,4480.9,4480.8,21.14715266]